bitfinex-derivatives/quotes_ETHF0:USTF0_20251216
["timestamp","ask_amount","ask_price","bid_price","bid_amount"]
[1765927041021,1.9948,2952.5,2952.0,0.43870078]
[1765927044825,2.76622849,2952.1,2952.0,0.00250078]
[1765927045223,1.5545,2952.1,2952.0,0.00250078]
[1765927045532,1.5545,2952.1,2952.0,0.78170078]
[1765927045825,2.76622849,2952.1,2952.0,0.00250078]
[1765927046129,2.93562849,2952.1,2952.0,7.8e-07]
[1765927047524,1.5545,2952.1,2952.0,1.53490078]
[1765927047733,1.5545,2952.1,2952.0,0.77920078]
[1765927048028,40.8,2952.3,2952.0,7.8e-07]
[1765927049635,16.95072849,2952.4,2952.0,7.8e-07]
[1765927050131,57.75072849,2952.4,2952.0,7.8e-07]
[1765927053434,57.92011849,2952.4,2952.0,7.8e-07]
[1765927055335,1.21172849,2952.1,2952.0,7.8e-07]
[1765927055837,1.38112849,2952.1,2952.0,7.8e-07]
[1765927058240,1.6382,2952.1,2952.0,1.50500078]
[1765927058433,1.6382,2952.1,2952.0,0.75220078]
[1765927058642,0.1694,2952.1,2952.0,7.8e-07]
[1765927065036,1.38112849,2952.1,2952.0,7.8e-07]
[1765927065340,0.1694,2952.1,2952.0,7.8e-07]
[1765927065936,1.38112849,2952.1,2952.0,7.8e-07]
[1765927066944,0.1694,2952.1,2952.0,7.8e-07]
[1765927067145,0.16941,2951.9,2951.8,0.00508724]
[1765927067445,17.37921,2951.9,2951.8,0.00508724]
[1765927068248,17.37921,2951.9,2951.8,0.00893634]
[1765927070350,18.59093849,2951.9,2951.8,0.00893634]
[1765927071452,18.59172336,2951.9,2951.8,0.00893634]
[1765927075149,17.37921,2951.9,2951.8,0.00893634]
[1765927075451,18.59172336,2951.9,2951.8,1.51393634]
[1765927075750,18.59172336,2951.9,2951.8,0.00893634]
[1765927076851,17.37921,2951.9,2951.8,0.00893634]
[1765927087864,17.37921,2951.9,2951.8,0.76113634]
[1765927088154,17.37921,2951.9,2951.8,1.49523634]
[1765927089157,17.37921,2951.9,2951.8,0.00893634]
[1765927096278,17.37921,2951.9,2951.8,0.77553634]
[1765927096777,1.5058,2952.2,2952.1,1.4863]
[1765927096970,15.742,2952.3,2952.2,1.4863]
[1765927097283,2.71831336,2952.8,2952.7,0.7666]
[1765927097478,18.46031336,2952.8,2952.2,1.21251336]
[1765927097674,2.40900637,2952.7,2952.6,1.4863]
[1765927098177,1.5058,2952.7,2952.6,1.4863]
[1765927099380,1.5058,2952.7,2952.5,0.4567]
[1765927099381,16.4716,2952.8,2952.7,1.4863]
[1765927099585,1.50888827,2953.1,2953.0,1.4863]
[1765927099784,0.00308827,2953.1,2953.0,1.943]
[1765927099983,1.50888827,2953.1,2953.0,1.943]
[1765927100290,0.00308827,2953.1,2953.0,1.943]
[1765927100583,0.73268827,2953.1,2953.0,1.943]
[1765927100777,1.50888827,2953.1,2953.0,1.943]
[1765927101988,0.7296,2952.6,2952.5,1.943]
[1765927102786,1.65451336,2953.0,2952.5,1.943]
[1765927103688,3.16031336,2953.0,2952.9,0.7666]
[1765927104290,1.9478,2953.0,2952.9,0.7666]
[1765927104693,1.9478,2953.0,2952.9,1.4863]
[1765927105193,1.5058,2953.0,2952.9,1.4863]
[1765927109400,1.9478,2953.0,2952.9,0.7666]
[1765927109900,1.9478,2953.0,2952.9,1.4863]
[1765927111393,1.9478,2953.0,2952.9,0.7666]
[1765927113999,1.5058,2953.0,2952.9,1.4863]
[1765927114202,1.5058,2953.0,2952.9,1.4806]
[1765927116098,1.5058,2953.0,2952.9,0.7666]
[1765927117798,1.5058,2953.0,2952.9,1.4904]
[1765927123795,1.5058,2953.0,2952.9,0.7666]
[1765927124001,1.9557,2953.0,2952.9,0.7666]
[1765927124201,1.9557,2953.0,2952.5,1.66788501]
[1765927124398,0.7218,2952.6,2952.5,3.12308501]
[1765927125203,0.4499,2953.0,2952.5,3.12308501]
[1765927125805,1.9202,2953.0,2952.9,0.7314]
[1765927127604,1.9202,2953.0,2952.5,1.66788501]
[1765927128097,1.9202,2953.0,2952.9,0.7314]
[1765927128292,1.47338827,2953.1,2953.0,0.7314]
[1765927128496,1.47338827,2953.1,2953.0,1.4552]
[1765927131104,1.47338827,2953.1,2953.0,0.7314]
[1765927131906,1.47338827,2953.1,2952.5,1.66788501]
[1765927132605,1.9273,2953.0,2952.9,0.7314]
[1765927133706,0.00308827,2953.1,2953.0,1.9138]
[1765927134098,0.72488827,2953.1,2953.0,1.9138]
[1765927135505,1.4703,2952.4,2952.3,5.69352202]
[1765927135703,1.4703,2952.4,2952.3,1.4552]
[1765927136102,0.7218,2952.4,2952.3,1.4552]
[1765927136500,1.4703,2952.4,2952.3,1.4552]
[1765927137806,0.7218,2952.4,2952.3,1.4552]
[1765927138010,0.62635,2953.0,2952.3,1.4552]
[1765927138615,1.63965,2953.0,2952.9,1.4552]
[1765927139713,1.63965,2953.0,2952.9,0.7314]
[1765927140610,0.89115,2953.0,2952.9,1.4552]
[1765927140800,1.63965,2953.0,2952.9,1.4552]
[1765927141110,1.63965,2953.0,2952.9,0.7314]
[1765927142309,1.4703,2953.0,2952.9,1.4552]
[1765927143319,1.4703,2953.0,2952.9,0.7314]
[1765927143613,1.4703,2952.3,2952.2,4.96972202]
[1765927143810,1.4703,2952.1,2952.0,1.9119]
[1765927144011,1.4703,2952.1,2952.0,1.4552]
[1765927145100,1.4703,2952.1,2952.0,1.8869]
[1765927147412,1.5389,2953.0,2952.9,1.4913]
[1765927147608,1.5389,2952.6,2952.5,1.923]
[1765927148910,1.9861,2952.5,2952.4,0.7733]
[1765927149316,1.9861,2952.5,2952.4,1.4913]
[1765927149514,1.5389,2952.5,2952.4,1.4913]
[1765927150506,0.7595,2952.5,2952.4,1.4913]
[1765927150718,1.82776159,2953.0,2952.5,1.923]
[1765927151014,0.7595,2952.6,2952.5,1.923]
[1765927151322,1.5389,2952.6,2952.5,1.923]
[1765927152315,0.00308827,2953.1,2953.0,1.923]
[1765927153017,1.54198827,2953.1,2953.0,0.7733]
[1765927153413,1.54198827,2953.1,2953.0,1.4913]
[1765927153715,0.76258827,2953.1,2953.0,1.923]
[1765927153918,0.00308827,2953.1,2953.0,1.923]
[1765927154918,1.54198827,2953.1,2953.0,1.923]
[1765927155919,0.76258827,2953.1,2953.0,1.923]
[1765927156621,0.00308827,2953.1,2953.0,1.923]
[1765927157617,0.00308827,2953.1,2953.0,3.13421159]
[1765927159817,0.00308827,2953.1,2953.0,1.923]
[1765927162227,0.61644,2955.0,2954.2,1.4913]
[1765927162518,0.61644,2955.0,2954.2,2.70251159]
[1765927163222,0.7595,2954.4,2954.3,1.49637786]
[1765927163419,1.5389,2954.4,2954.3,0.00507786]
[1765927163623,1.5389,2954.4,2954.3,0.77837786]
[1765927163822,1.5389,2954.4,2954.3,1.49637786]
[1765927164422,2.75011159,2954.4,2954.3,0.00507786]
[1765927167528,1.21121159,2954.7,2954.3,0.77837786]
[1765927167728,1.5389,2954.4,2954.3,0.77837786]
[1765927168223,42.3389,2954.4,2954.3,0.00507786]
[1765927168422,1.5389,2954.4,2954.3,0.00507786]
[1765927169226,1.5389,2954.4,2954.3,1.49637786]
[1765927169917,1.5389,2954.4,2954.3,0.77837786]
[1765927170631,1.5389,2954.4,2954.3,0.00507786]
[1765927170833,2.75011159,2954.4,2954.3,0.00507786]
[1765927171136,1.5389,2954.4,2954.3,0.00507786]
[1765927180332,1.70817,2954.4,2954.3,0.00507786]
[1765927186145,17.43817,2954.4,2954.3,0.00507786]
[1765927190745,18.64847472,2954.4,2954.3,0.00507786]
[1765927193351,18.64873915,2954.4,2954.3,0.00507786]
[1765927202554,18.64873915,2954.4,2954.3,0.74887786]
[1765927202756,18.64873915,2954.4,2954.3,1.52137786]
[1765927203154,18.47946915,2954.4,2954.3,1.52137786]
[1765927203351,1.96666915,2954.6,2954.5,1.5163]
[1765927203549,1.21056915,2954.6,2954.5,1.9622]
[1765927203754,1.96666915,2954.6,2954.5,1.9622]
[1765927204059,1.5422,2954.4,2954.3,1.49117786]
[1765927204257,2.75276915,2954.4,2954.3,1.49117786]
[1765927205361,1.96096915,2954.4,2954.3,1.49117786]
[1765927205760,13.7122,2954.7,2954.6,1.4861]
[1765927205947,14.92276915,2954.7,2954.6,1.4861]
[1765927206151,0.7504,2954.4,2954.3,1.49117786]
[1765927206353,0.00507786,2954.9,2954.8,1.4861]
[1765927206558,1.54727786,2954.9,2954.8,1.4861]
[1765927207559,1.54727786,2954.9,2954.8,0.7168]
[1765927207864,1.54727786,2954.9,2954.8,1.4861]
[1765927208776,1.54727786,2954.9,2954.8,0.7168]
[1765927209367,1.54727786,2954.9,2954.8,1.4861]
[1765927209574,1.54727786,2954.9,2954.5,1.9574]
[1765927209575,0.7504,2954.6,2954.5,1.9574]
[1765927209872,0.00507786,2954.9,2954.8,1.4861]
[1765927210870,0.75547786,2954.9,2954.8,1.4861]
[1765927211076,1.54727786,2954.9,2954.8,1.4861]
[1765927212472,0.00507786,2954.9,2954.8,1.4861]
[1765927212676,1.21056915,2955.7,2954.9,0.7693]
[1765927212880,0.16916,2956.4,2956.3,1.4861]
[1765927213173,41.71956,2956.4,2956.3,0.7168]
[1765927213772,41.72372477,2956.4,2956.3,0.7204267]
[1765927214478,42.93429392,2956.4,2956.3,1.4897267]
[1765927214867,42.93429392,2956.4,2956.3,0.0036267]
[1765927215067,41.72372477,2956.4,2956.3,0.0036267]
[1765927215972,1.71552477,2956.4,2956.3,0.7204267]
[1765927216171,1.71552477,2956.4,2956.3,0.0036267]
[1765927216372,42.51552477,2956.4,2956.3,0.0036267]
[1765927217077,43.72609392,2956.4,2956.3,1.4897267]
[1765927217482,0.92372477,2956.4,2956.3,1.4897267]
[1765927218079,0.75456477,2956.4,2956.3,1.4897267]
[1765927218378,0.00416477,2956.4,2956.3,1.4897267]
[1765927218579,0.75456477,2956.4,2956.3,1.4897267]
[1765927218879,0.00333863,2956.6,2956.5,1.9574]
[1765927219978,0.00661298,2956.6,2956.5,1.9574]
[1765927220778,0.00661298,2956.6,2956.5,3.16796915]
[1765927221376,2.75276915,2957.5,2957.4,1.4861]
[1765927221579,1.5422,2957.1,2957.0,1.9574]
[1765927221884,42.01056915,2957.5,2956.5,0.4713]
[1765927221885,0.7504,2956.6,2956.5,1.9574]
[1765927222186,1.21056915,2956.8,2956.5,1.9574]
[1765927222383,1.96488529,2956.8,2956.7,1.4861]
[1765927222584,0.00391614,2956.8,2956.7,1.4861]
[1765927224673,0.4142,2958.0,2957.2,1.4861]
[1765927224879,2.75276915,2957.4,2957.3,0.7168]
[1765927225183,1.5422,2957.1,2957.0,1.9574]
[1765927225377,1.21056915,2957.5,2957.0,1.2406]
[1765927225582,2.75276915,2957.5,2957.4,1.4861]
[1765927225783,2.75593849,2957.5,2957.4,1.4861]
[1765927226178,1.54536934,2957.5,2957.4,1.4861]
[1765927226480,2.75593849,2957.5,2957.4,0.7168]
[1765927226687,0.7504,2957.1,2957.0,1.9574]
[1765927226985,1.5422,2957.1,2957.0,1.9574]
[1765927227786,1.71445934,2957.5,2957.4,1.4861]
[1765927228082,2.92502849,2957.5,2957.4,0.7168]
[1765927228385,0.7504,2957.1,2957.0,1.9574]
[1765927228786,1.96096915,2957.2,2957.1,1.4861]
[1765927229485,2.75276915,2957.2,2957.1,1.4861]
[1765927231295,1.5422,2957.1,2957.0,1.1881]
[1765927231482,1.5422,2957.1,2956.5,0.4713]
[1765927231678,2.75276915,2956.8,2956.7,1.4861]
[1765927231883,1.5422,2956.6,2956.5,1.9574]
[1765927232080,2.75276915,2956.6,2956.5,1.9574]
[1765927233992,0.789,2956.4,2956.3,1.4765267]
[1765927234195,1.99956915,2956.4,2956.3,1.4765267]
[1765927234391,2.74406915,2956.4,2956.3,1.4765267]
[1765927234691,1.5335,2956.4,2956.3,1.4765267]
[1765927234894,0.789,2956.4,2956.3,1.4765267]
[1765927235285,1.21056915,2956.5,2956.3,1.4765267]
[1765927235480,2.74966915,2956.7,2956.6,1.5335]
[1765927235984,2.74966915,2956.7,2956.6,0.7852]
[1765927236290,43.54966915,2956.7,2956.6,0.7852]
[1765927237491,1.5391,2956.6,2956.5,1.2472]
[1765927237994,1.5391,2956.6,2956.5,1.9955]
[1765927241291,1.5391,2956.6,2956.5,0.462]
[1765927241494,1.5391,2956.4,2956.3,1.5371267]
[1765927241691,2.74966915,2956.4,2956.3,1.5371267]
[1765927243693,1.97716915,2956.4,2956.3,1.5371267]
[1765927245700,1.21056915,2956.4,2956.3,1.5371267]
[1765927246089,1.5391,2956.6,2956.5,1.9955]
[1765927246293,2.74966915,2956.6,2956.5,1.9955]
[1765927246493,2.74966915,2956.6,2956.5,1.2472]
[1765927246894,2.74760121,2956.6,2956.5,1.2472]
[1765927247200,1.5391,2956.6,2956.5,1.9955]
[1765927247997,1.97510121,2956.6,2956.5,1.9955]
[1765927248297,1.97510121,2957.0,2956.9,1.5335]
[1765927248501,2.74760121,2957.0,2956.9,0.7852]
[1765927248695,1.5391,2956.6,2956.5,1.9955]
[1765927248896,2.74760121,2956.6,2956.5,1.9955]
[1765927249998,1.97510121,2956.6,2956.5,1.9955]
[1765927251002,1.5391,2956.4,2956.3,0.0036267]
[1765927251303,2.74760121,2956.4,2956.3,0.7888267]
[1765927251495,2.74760121,2956.4,2956.3,1.5371267]
[1765927252096,1.5391,2956.2,2956.1,0.00507786]
[1765927252400,1.5391,2956.2,2954.8,1.20850121]
[1765927252401,1.5391,2955.6,2954.7,3.02287003]
[1765927252704,2.74760121,2955.2,2955.1,1.5335]
[1765927253094,0.7666,2954.6,2954.5,1.9955]
[1765927253394,2.75267907,2954.8,2954.7,1.5335]
[1765927253598,0.77167786,2954.8,2954.7,1.5335]
[1765927253897,0.00507786,2954.8,2954.7,1.5335]
[1765927254103,0.77167786,2954.8,2954.7,1.5335]
[1765927254798,0.00507786,2954.8,2954.7,1.5335]
[1765927255600,0.00377243,2955.2,2955.1,1.5335]
[1765927256696,1.54287243,2955.2,2955.1,1.5335]
[1765927258900,0.00377243,2955.2,2955.1,1.5335]
[1765927262305,0.77037243,2955.2,2955.1,1.5335]
[1765927262611,0.00377243,2955.2,2955.1,1.5335]
[1765927266707,2.65050858,2956.0,2955.9,0.7224]
[1765927266913,2.65050858,2956.0,2955.5,0.4292]
[1765927267111,0.716,2955.6,2955.5,1.8902]
[1765927267600,1.20950858,2956.0,2955.5,1.8902]
[1765927267806,0.00358152,2955.6,2955.5,1.8902]
[1765927268007,1.44458152,2955.6,2955.5,1.8902]
[1765927268206,0.71958152,2955.6,2955.5,1.8902]
[1765927268709,1.44458152,2955.6,2955.5,1.8902]
[1765927269716,0.71958152,2955.6,2955.5,1.8902]
[1765927270014,0.00358152,2955.6,2955.5,1.8902]
[1765927281027,0.16914,2956.8,2956.3,1.461]
[1765927281325,1.441,2956.4,2956.3,0.72747786]
[1765927281525,1.441,2956.4,2956.3,0.00507786]
[1765927281727,7.441,2956.4,2956.3,0.00507786]
[1765927282025,1.44509232,2956.4,2956.3,1.46607786]
[1765927282228,1.44509232,2956.4,2956.3,0.00507786]
[1765927283020,1.44509232,2956.4,2956.3,0.72747786]
[1765927286424,1.44509232,2956.4,2956.3,0.00507786]
[1765927288623,1.44509232,2956.4,2956.3,0.72747786]
[1765927288824,1.44509232,2956.4,2956.3,1.46607786]
[1765927289127,1.44509232,2956.4,2956.3,0.72747786]
[1765927290832,1.44509232,2956.4,2956.3,1.46607786]
[1765927291326,0.00409232,2956.4,2956.3,1.46607786]
[1765927292126,1.44509232,2956.4,2956.3,0.00507786]
[1765927292328,1.44509232,2956.4,2956.3,0.72747786]
[1765927292528,1.44509232,2956.4,2956.3,0.00507786]
[1765927293134,1.44509232,2956.4,2956.3,0.72747786]
[1765927293436,1.44509232,2956.4,2956.3,1.46607786]
[1765927293935,0.72009232,2956.4,2956.3,1.46607786]
[1765927294129,0.78779232,2956.4,2956.3,1.46607786]
[1765927295136,0.00409232,2956.4,2956.3,1.46607786]
[1765927295540,0.78779232,2956.4,2956.3,1.46607786]
[1765927297740,1.52989232,2956.4,2956.3,1.46607786]
[1765927298042,1.52989232,2956.4,2956.3,0.72747786]
[1765927298434,1.52989232,2956.4,2956.3,0.00507786]
[1765927298643,1.52989232,2956.4,2956.3,0.76107786]
[1765927301343,1.52989232,2956.4,2956.3,1.52927786]
[1765927302543,1.52989232,2956.4,2956.3,0.76107786]
[1765927303645,1.52989232,2956.4,2956.3,0.00507786]
[1765927303844,1.52989232,2956.4,2956.3,1.52927786]
[1765927307346,0.00409232,2956.4,2956.3,1.52927786]
[1765927307547,0.73489232,2956.4,2956.3,1.52927786]
[1765927307748,1.47699232,2956.4,2956.3,1.52927786]
[1765927308340,1.47699232,2956.4,2956.3,0.00507786]
[1765927308841,0.73489232,2956.4,2956.3,1.52927786]
[1765927309348,0.00409232,2956.4,2956.3,1.52927786]
[1765927309941,0.73489232,2956.4,2956.3,1.52927786]
[1765927310346,1.47699232,2956.4,2956.3,1.52927786]
[1765927311648,1.47699232,2956.4,2956.3,0.76107786]
[1765927314453,1.47699232,2956.4,2956.3,0.00507786]
[1765927315552,2.68566118,2956.4,2956.3,0.00507786]
[1765927318458,2.6856414,2956.4,2956.3,0.00507786]
[1765927321862,1.4729,2955.6,2955.5,3.02287003]
[1765927322157,1.4729,2955.6,2955.1,5.76252202]
[1765927322158,1.4729,2955.2,2955.1,5.76252202]
[1765927322460,2.68154908,2955.2,2955.1,1.5242]
[1765927322660,1.4729,2955.1,2955.0,1.218]
[1765927322858,1.4729,2954.9,2954.8,1.52927786]
[1765927323158,0.7308,2954.9,2954.8,1.52927786]
[1765927325860,1.4729,2954.9,2954.8,1.52927786]
[1765927326052,2.68154908,2954.9,2954.8,0.00507786]
[1765927326352,2.68154908,2954.9,2954.8,0.77197786]
[1765927328158,2.68154908,2954.9,2954.8,1.50767786]
[1765927332361,1.93944908,2954.9,2954.8,1.50767786]
[1765927333663,0.7308,2954.9,2954.8,1.50767786]
[1765927333863,1.60923,2955.2,2955.1,1.5026]
[1765927334062,2.81787908,2955.2,2955.1,0.7669]
[1765927334364,1.44,2955.1,2955.0,1.2343]
[1765927335566,2.81787908,2955.2,2955.1,1.5026]
[1765927335965,1.44,2955.1,2955.0,0.4674]
[1765927336154,1.44,2954.9,2954.8,0.77197786]
[1765927336354,2.64864908,2954.9,2954.8,0.77197786]
[1765927336561,2.64864908,2954.9,2954.8,1.50767786]
[1765927338065,1.20864908,2955.1,2954.8,1.50767786]
[1765927338767,2.64864908,2955.1,2955.0,1.97]
[1765927339863,0.71917786,2955.3,2955.2,1.5026]
[1765927340062,1.21372694,2955.3,2955.2,1.5026]
[1765927340261,2.65372694,2955.3,2955.0,0.4674]
[1765927340464,1.92274908,2955.1,2955.0,1.97]
[1765927341763,2.64864908,2955.1,2955.0,1.97]
[1765927341968,1.44,2954.9,2954.8,1.50767786]
[1765927342170,2.64864908,2954.9,2954.8,1.50767786]
[1765927342572,1.92274908,2955.2,2955.1,1.5026]
[1765927342872,2.64864908,2955.2,2955.1,1.5026]
[1765927343772,2.64864908,2955.2,2955.1,0.7669]
[1765927344770,2.64864908,2955.2,2954.8,1.50767786]
[1765927344771,1.44,2954.9,2954.8,1.50767786]
[1765927344972,2.64864908,2954.9,2954.8,0.00507786]
[1765927349777,2.64864908,2954.9,2954.8,0.77197786]
[1765927349975,2.64864908,2954.9,2954.8,0.00507786]
[1765927351677,2.64864908,2954.9,2954.8,1.50767786]
[1765927351978,1.92274908,2954.9,2954.8,1.50767786]
[1765927352181,2.64864908,2954.9,2954.8,1.50767786]
[1765927353376,2.81787908,2955.2,2955.1,1.5026]
[1765927353578,1.44,2955.1,2955.0,1.2343]
[1765927353778,1.44,2955.1,2955.0,0.4674]
[1765927354075,1.44,2955.1,2955.0,1.2343]
[1765927355276,1.5225,2954.9,2954.8,0.00507786]
[1765927355476,2.73114908,2954.9,2954.8,0.00507786]
[1765927356080,2.73114908,2954.9,2954.8,0.77687786]
[1765927356284,1.20864908,2954.9,2954.8,1.49297786]
[1765927356582,1.98594908,2954.9,2954.8,1.49297786]
[1765927357279,2.74484908,2954.9,2954.8,1.49297786]
[1765927357578,2.74484908,2954.9,2954.8,0.77687786]
[1765927357783,2.74484908,2954.9,2954.8,0.00507786]
[1765927358172,2.74484908,2954.9,2954.8,0.72147786]
[1765927360080,2.74484908,2954.9,2954.8,1.43757786]
[1765927360483,2.74484908,2954.9,2954.8,0.72147786]
[1765927360782,2.74484908,2954.9,2954.8,0.00507786]
[1765927362480,2.91408908,2954.9,2954.8,0.00507786]
[1765927363885,2.91408908,2954.9,2954.0,0.4592]
[1765927363886,1.5362,2954.1,2954.0,1.8917]
[1765927364176,1.5362,2953.8,2953.7,1.4325]
[1765927364481,1.98594908,2953.8,2953.7,1.4325]
[1765927364878,1.99012399,2953.8,2953.7,1.4359013]
[1765927366374,0.00417491,2953.8,2953.7,1.4359013]
[1765927366582,0.00417491,2953.8,2953.7,2.64455038]
[1765927367577,0.00417491,2953.8,2953.7,1.4359013]
[1765927367772,0.78147491,2953.8,2953.7,1.4359013]
[1765927367976,1.54037491,2953.8,2953.7,1.4359013]
[1765927368185,1.54037491,2953.8,2953.7,0.0034013]
[1765927368585,2.74902399,2953.8,2953.7,0.0034013]
[1765927368882,1.54037491,2953.8,2953.7,0.0034013]
[1765927369279,1.99012399,2953.8,2953.7,1.4359013]
[1765927369478,0.00417491,2953.8,2953.7,1.4359013]
[1765927370586,0.78147491,2953.8,2953.7,1.4359013]
[1765927371987,0.00417491,2953.8,2953.7,1.4359013]
[1765927381494,40.8,2954.8,2954.7,1.4325]
[1765927381791,1.5362,2954.8,2954.7,1.4325]
[1765927381987,0.16924,2955.0,2954.9,1.4325]
[1765927382189,1.70544,2955.0,2954.9,1.4325]
[1765927382394,1.70966213,2955.0,2954.9,1.4325]
[1765927382594,1.54042213,2955.0,2954.9,1.4325]
[1765927383590,0.78152213,2955.0,2954.9,1.4325]
[1765927383790,1.54042213,2955.0,2954.9,1.4325]
[1765927384594,0.78152213,2955.0,2954.9,1.4325]
[1765927384795,1.55502213,2955.0,2954.9,1.4325]
[1765927384991,0.78152213,2955.0,2954.9,1.4325]
[1765927385188,0.00422213,2955.0,2954.9,1.4325]
[1765927386286,1.50752213,2955.0,2954.9,1.4325]
[1765927386488,0.7298,2954.6,2954.5,1.1883]
[1765927386691,1.5033,2954.6,2954.5,1.9131]
[1765927388504,1.5033,2954.6,2954.5,1.1883]
[1765927389104,1.5033,2954.6,2954.5,1.9131]
[1765927389304,1.5033,2954.6,2954.5,1.1883]
[1765927389496,1.5033,2954.6,2954.5,1.9131]
[1765927392106,1.5033,2954.6,2954.5,1.1883]
[1765927392706,1.5033,2954.6,2954.5,1.9131]
[1765927394911,0.7298,2954.6,2954.5,1.9131]
[1765927395114,0.90326213,2955.0,2954.9,1.4652]
[1765927395415,1.67676213,2955.0,2954.9,1.4652]
[1765927395601,0.73402213,2955.0,2954.9,1.4652]
[1765927395807,0.00422213,2955.0,2954.9,1.4652]
[1765927396010,0.73402213,2955.0,2954.9,1.4652]
[1765927396420,1.50752213,2955.0,2954.9,1.4652]
[1765927397414,0.73402213,2955.0,2954.9,1.4652]
[1765927398103,0.00422213,2955.0,2954.9,1.4652]
[1765927399018,0.00422213,2955.0,2954.9,2.67511787]
[1765927400517,0.73402213,2955.0,2954.9,1.4652]
[1765927401212,0.00422213,2955.0,2954.9,1.4652]
[1765927407128,0.73402213,2955.0,2954.9,1.4652]
[1765927407326,1.50752213,2955.0,2954.9,1.4652]
[1765927408120,0.73402213,2955.0,2954.9,1.4652]
[1765927408521,0.00422213,2955.0,2954.9,1.4652]
[1765927410025,0.00422213,2955.0,2954.9,2.67511787]
[1765927411825,15.73,2955.7,2955.0,0.4455]
[1765927412031,0.16917,2956.1,2955.6,1.4652]
[1765927412235,1.67247,2956.1,2956.0,1.9107]
[1765927412726,0.7298,2955.6,2955.5,1.9107]
[1765927412932,1.50593362,2955.6,2955.5,1.91503073]
[1765927413322,1.50593362,2955.6,2955.5,1.19023073]
[1765927413934,1.50593362,2955.6,2955.5,0.00433073]
[1765927416727,1.5398,2955.1,2955.0,1.9361]
[1765927417740,0.7617,2955.1,2955.0,1.93897261]
[1765927420334,1.38175149,2955.6,2955.0,1.93897261]
[1765927420534,2.92155149,2955.6,2955.5,1.9595]
[1765927421133,2.92155149,2955.6,2955.5,1.2284]
[1765927421331,2.92155149,2955.6,2955.5,0.4689]
[1765927421537,2.92155149,2955.6,2955.0,0.44837261]
[1765927422234,0.7617,2955.1,2955.0,1.93897261]
[1765927424037,1.38175149,2955.6,2955.0,1.93897261]
[1765927425834,1.5398,2955.1,2955.0,1.93897261]
[1765927426029,1.5398,2955.1,2955.0,0.00287261]
[1765927426735,1.5398,2954.9,2954.5,0.4479]
[1765927426942,1.5398,2954.6,2954.0,0.4455]
[1765927427738,1.5398,2954.1,2954.0,1.94005621]
[1765927428941,2.74971787,2954.1,2954.0,0.00395621]
[1765927436842,0.7617,2954.1,2954.0,1.96345621]
[1765927437742,1.5398,2954.1,2954.0,1.96345621]
[1765927437942,1.5398,2954.1,2954.0,1.23235621]
[1765927438146,1.5398,2954.1,2954.0,0.00395621]
[1765927438352,2.75017568,2954.1,2954.0,0.00395621]
[1765927438946,1.7091,2953.9,2953.5,0.4689]
[1765927439149,0.7617,2953.1,2953.0,1.9595]
[1765927439454,1.5398,2953.1,2953.0,1.9595]
[1765927439647,0.7617,2953.1,2953.0,1.9595]
[1765927439854,2.75017568,2953.3,2953.2,1.4906]
[1765927440047,2.75454531,2953.3,2953.2,1.49478282]
[1765927441958,2.75454531,2953.3,2953.2,0.00418282]
[1765927444454,2.75454531,2953.3,2953.2,0.76368282]
[1765927444750,0.00436963,2953.3,2953.2,1.50878282]
[1765927444957,0.73286963,2953.3,2953.2,1.50878282]
[1765927449059,1.51376963,2953.3,2953.2,1.50878282]
[1765927450959,1.51376963,2953.3,2953.2,0.77078282]
[1765927451158,1.51376963,2953.3,2953.2,1.51588282]
[1765927453066,0.00436963,2953.3,2953.2,1.51588282]
[1765927453264,0.00436963,2953.3,2953.2,2.7262585]
[1765927458075,0.00436963,2953.3,2953.2,2.72652046]
[1765927461079,0.00507786,2953.5,2953.4,1.5117]
[1765927461279,0.00507786,2953.5,2953.4,2.72233764]
[1765927462079,0.00907521,2953.5,2953.4,1.5117]
[1765927467287,0.73757521,2953.5,2953.4,1.5117]
[1765927468784,0.00907521,2953.5,2953.4,1.5117]
[1765927475093,2.30858,2954.3,2954.2,1.4907]
[1765927475391,3.51921764,2954.3,2954.2,1.4907]
[1765927475988,3.5219643,2954.3,2954.2,1.4907]
[1765927477681,1.5112,2954.1,2954.0,1.961]
[1765927478091,2.72183764,2954.1,2954.0,0.4714]
[1765927478393,2.72183764,2954.1,2954.0,1.1876]
[1765927478792,2.72183764,2954.1,2954.0,1.961]
[1765927479395,1.5112,2954.1,2954.0,1.961]
[1765927479691,0.7196,2954.1,2954.0,1.961]
[1765927479883,1.5112,2954.1,2954.0,1.961]
[1765927481087,0.7196,2954.1,2954.0,1.961]
[1765927481396,3.4858643,2954.3,2954.2,1.4896]
[1765927481986,3.4858643,2954.3,2954.2,0.7162]
[1765927482287,1.5112,2954.1,2954.0,0.4714]
[1765927482486,1.5112,2954.1,2954.0,1.1876]
[1765927482793,1.5112,2954.1,2954.0,1.961]
[1765927483094,0.7196,2954.1,2954.0,1.961]
[1765927486695,3.3165843,2954.3,2954.2,1.4896]
[1765927488492,3.3165843,2954.3,2954.2,0.7162]
[1765927491192,1.5112,2954.1,2954.0,1.961]
[1765927491386,2.72183764,2954.1,2954.0,1.1876]
[1765927491591,2.72183764,2954.1,2953.5,1.68203764]
[1765927491592,1.5112,2953.6,2953.5,1.961]
[1765927491792,2.72183764,2953.6,2953.5,1.961]
[1765927492592,1.5112,2953.6,2953.5,1.961]
[1765927492793,2.72183764,2953.9,2953.8,1.4896]
[1765927493797,1.5112,2953.6,2953.5,1.961]
[1765927493998,1.5112,2953.3,2953.2,0.72038282]
[1765927494204,2.72183764,2953.3,2953.2,0.00418282]
[1765927497591,1.5112,2953.1,2953.0,0.00507786]
[1765927497903,0.7196,2952.6,2952.5,1.9585]
[1765927498099,0.4175,2953.5,2952.5,3.16913764]
[1765927498300,0.7196,2952.6,2952.5,1.9585]
[1765927498600,2.72183764,2952.8,2952.7,1.4896]
[1765927499304,1.5112,2952.6,2952.5,1.96614665]
[1765927499994,0.00507786,2953.0,2952.5,1.96614665]
[1765927500200,0.7196,2952.6,2952.5,1.96614665]
[1765927501003,0.00507786,2953.0,2952.9,1.4896]
[1765927501196,1.51627786,2953.0,2952.9,1.4896]
[1765927501398,1.51627786,2953.0,2952.5,0.47654665]
[1765927501705,0.7196,2952.6,2952.5,1.96614665]